fUST/lending_fUST_20240503
["ID","MTS","AMOUNT","RATE_DAILY","PERIOD"]
[325347505,1714746639822,-500.0,0.00027397,2]
[325347507,1714746639832,-500.0,0.00027397,2]
[325347509,1714746639842,-500.0,0.00027397,2]
[325347511,1714746639852,-500.0,0.00027397,2]
[325347513,1714746639861,-291.68633302,0.00027397,2]
[325347515,1714746639872,-500.0,0.00027397,2]
[325347517,1714746639882,-500.0,0.00027397,2]
[325347519,1714746639891,-500.0,0.00027397,2]
[325347521,1714746639904,-500.0,0.00027397,2]
[325347523,1714746639914,-500.0,0.00027397,2]
[325347525,1714746639923,-500.0,0.00027397,2]
[325347527,1714746639933,-500.0,0.00027397,2]
[325347529,1714746639942,-500.0,0.00027397,2]
[325347531,1714746639953,-953.78,0.00027397,2]
[325347533,1714746639962,-500.0,0.00027397,2]
[325347535,1714746639972,-500.0,0.00027397,2]
[325347537,1714746639982,-500.0,0.00027397,2]
[325347539,1714746639991,-500.0,0.00027397,2]
[325347541,1714746640000,-500.0,0.00027397,2]
[325347543,1714746640010,-500.0,0.00027397,2]
[325347545,1714746640020,-500.0,0.00027397,2]
[325347547,1714746640029,-500.0,0.00027397,2]
[325347549,1714746640039,-500.0,0.00027397,2]
[325347551,1714746640048,-500.0,0.00027397,2]
[325347553,1714746640058,-500.0,0.00027397,2]
[325347555,1714746640067,-500.0,0.00027397,2]
[325347557,1714746640076,-404.9903359,0.00027397,2]
[325347559,1714746640086,-554.82,0.00027397,2]
[325347561,1714746640095,-240.197315,0.00027397,2]
[325347563,1714746640104,-500.0,0.00027397,2]
[325347565,1714746640114,-500.0,0.00027397,2]
[325347567,1714746640124,-500.0,0.00027397,2]
[325347569,1714746640134,-500.0,0.00027397,2]
[325347571,1714746640144,-904.18,0.00027397,2]
[325347573,1714746640155,-574.88624669,0.00027397,2]
[325347575,1714746640164,-500.0,0.00027397,2]
[325347577,1714746640174,-516.8,0.00027397,2]
[325347579,1714746640184,-342.53838962,0.00027397,2]
[325347581,1714746640193,-500.0,0.00027397,2]
[325347583,1714746640203,-500.0,0.00027397,2]
[325347585,1714746640213,-500.0,0.00027397,2]
[325347587,1714746640223,-500.0,0.00027397,2]
[325347589,1714746640237,-500.0,0.00027397,2]
[325347591,1714746640246,-500.0,0.00027397,2]
[325347593,1714746640256,-500.0,0.00027397,2]
[325347595,1714746640265,-500.0,0.00027397,2]
[325347597,1714746640275,-1154.28,0.00027397,2]
[325347599,1714746640285,-500.0,0.00027397,2]
[325347601,1714746640294,-500.0,0.00027397,2]
[325347603,1714746640304,-500.0,0.00027397,2]
[325347605,1714746640313,-636.82,0.00027397,2]
[325347607,1714746640324,-500.0,0.00027397,2]
[325347609,1714746640334,-595.88,0.00027397,2]
[325347611,1714746640343,-500.0,0.00027397,2]
[325347613,1714746640352,-1819.45,0.00027397,2]
[325347615,1714746640362,-500.0,0.00027397,2]
[325347617,1714746640372,-981.86,0.00027397,2]
[325347619,1714746640381,-500.0,0.00027397,2]
[325347621,1714746640390,-500.0,0.00027397,2]
[325347623,1714746640400,-500.0,0.00027397,2]
[325347625,1714746640409,-500.0,0.00027397,2]
[325347627,1714746640418,-500.0,0.00027397,2]
[325347629,1714746640427,-500.0,0.00027397,2]
[325347631,1714746640437,-501.84296149,0.00027397,2]
[325347632,1714746640446,-500.0,0.00027397,2]
[325347634,1714746640455,-500.0,0.00027397,2]
[325347635,1714746640466,-1121.38,0.00027397,2]
[325347637,1714746640475,-500.0,0.00027397,2]
[325347640,1714746640484,-500.0,0.00027397,2]
[325347642,1714746640494,-584.65,0.00027397,2]
[325347645,1714746640503,-500.0,0.00027397,2]
[325347647,1714746640512,-336.65984201,0.00027397,2]
[325347649,1714746640522,-725.14,0.00027397,2]
[325347651,1714746640531,-1162.99,0.00027397,2]
[325347653,1714746640540,-500.0,0.00027397,2]
[325347655,1714746640549,-720.55,0.00027397,2]
[325347657,1714746640558,-500.0,0.00027397,2]
[325347659,1714746640568,-500.0,0.00027397,2]
[325347661,1714746640577,-581.03,0.00027397,2]
[325347663,1714746640586,-500.0,0.00027397,2]
[325347665,1714746640596,-300.0,0.00027397,2]
[325347667,1714746640605,-500.0,0.00027397,2]
[325347669,1714746640614,-500.0,0.00027397,2]
[325347671,1714746640623,-500.0,0.00027397,2]
[325347673,1714746640632,-550.97,0.00027397,2]
[325347675,1714746640641,-500.0,0.00027397,2]
[325347677,1714746640651,-500.0,0.00027397,2]
[325347679,1714746640660,-500.0,0.00027397,2]
[325347681,1714746640669,-500.0,0.00027397,2]
[325347683,1714746640678,-514.40698916,0.00027397,2]
[325347684,1714746640688,-500.0,0.00027397,2]
[325347686,1714746640697,-500.0,0.00027397,2]
[325347688,1714746640706,-500.0,0.00027397,2]
[325347690,1714746640716,-500.0,0.00027397,2]
[325347692,1714746640725,-1493.57,0.00027397,2]
[325347694,1714746640735,-500.0,0.00027397,2]
[325347696,1714746640744,-500.0,0.00027397,2]
[325347698,1714746640753,-500.0,0.00027397,2]
[325347700,1714746640762,-500.0,0.00027397,2]
[325347702,1714746640772,-500.0,0.00027397,2]
[325347704,1714746640781,-500.0,0.00027397,2]
[325347706,1714746640790,-500.0,0.00027397,2]
[325347708,1714746640799,-500.0,0.00027397,2]
[325347710,1714746640808,-508.86999078,0.00027397,2]
[325347712,1714746640819,-500.0,0.00027397,2]
[325347714,1714746640828,-500.0,0.00027397,2]
[325347716,1714746640838,-500.0,0.00027397,2]
[325347718,1714746640847,-2100.73,0.00027397,2]
[325347720,1714746640857,-500.0,0.00027397,2]
[325347722,1714746640867,-519.10648597,0.00027397,2]
[325347724,1714746640877,-1735.78,0.00027397,2]
[325347726,1714746640886,-854.9,0.00027397,2]
[325347728,1714746640896,-312.55165589,0.00027397,2]
[325347730,1714746640910,-500.0,0.00027397,2]
[325347732,1714746640919,-500.0,0.00027397,2]
[325347734,1714746640929,-1310.08,0.00027397,2]
[325347736,1714746640939,-500.0,0.00027397,2]
[325347738,1714746640952,-500.0,0.00027397,2]
[325347740,1714746640961,-500.0,0.00027397,2]
[325347742,1714746640971,-1001.87,0.00027397,2]
[325347744,1714746640981,-500.0,0.00027397,2]
[325347746,1714746640991,-521.02722097,0.00027397,2]
[325347748,1714746641000,-502.73308594,0.00027397,2]
[325347750,1714746641009,-561.33,0.00027397,2]
[325347752,1714746641019,-500.0,0.00027397,2]
[325347754,1714746641028,-500.0,0.00027397,2]
[325347756,1714746641038,-500.0,0.00027397,2]
[325347757,1714746641048,-502.72988029,0.00027397,2]
[325347758,1714746641058,-500.0,0.00027397,2]
[325347759,1714746641068,-500.0,0.00027397,2]
[325347760,1714746641078,-684.51,0.00027397,2]
[325347761,1714746641088,-500.0,0.00027397,2]
[325347762,1714746641098,-2937.5,0.00027397,2]
[325347763,1714746641108,-500.0,0.00027397,2]
[325347764,1714746641118,-1758.52,0.00027397,2]
[325347765,1714746641128,-500.0,0.00027397,2]
[325347766,1714746641137,-500.0,0.00027397,2]
[325347767,1714746641147,-500.0,0.00027397,2]
[325347768,1714746641157,-500.0,0.00027397,2]
[325347769,1714746641166,-500.0,0.00027397,2]
[325347770,1714746641176,-498.15530433,0.00027397,2]
[325347771,1714746641186,-500.0,0.00027397,2]
[325347772,1714746641195,-502.35540819,0.00027397,2]
[325347773,1714746641205,-500.0,0.00027397,2]
[325347774,1714746641214,-500.0,0.00027397,2]
[325347775,1714746641224,-500.0,0.00027397,2]
[325347776,1714746641234,-723.88,0.00027397,2]
[325347777,1714746641244,-500.0,0.00027397,2]
[325347778,1714746641257,-500.0,0.00027397,2]
[325347779,1714746641266,-3962.64,0.00027397,2]
[325347780,1714746641275,-500.0,0.00027397,2]
[325347781,1714746641284,-500.0,0.00027397,2]
[325347782,1714746641295,-3570.88,0.00027397,2]
[325347783,1714746641305,-500.0,0.00027397,2]
[325347784,1714746641314,-500.0,0.00027397,2]
[325347785,1714746641325,-500.0,0.00027397,2]
[325347786,1714746641335,-521.69,0.00027397,2]
[325347787,1714746641345,-751.59,0.00027397,2]
[325347788,1714746641355,-500.0,0.00027397,2]
[325347789,1714746641364,-500.0,0.00027397,2]
[325347790,1714746641374,-501.70824968,0.00027397,2]
[325347791,1714746641383,-517.01601964,0.00027397,2]
[325347792,1714746641393,-500.0,0.00027397,2]
[325347793,1714746641402,-500.0,0.00027397,2]
[325347794,1714746641412,-500.0,0.00027397,2]
[325347806,1714746641421,-506.66,0.00027397,2]
[325347809,1714746641532,-500.0,0.00027397,2]
[325347811,1714746641541,-500.0,0.00027397,2]
[325347813,1714746641551,-500.0,0.00027397,2]
[325347815,1714746641560,-763.24,0.00027397,2]
[325347817,1714746641569,-500.0,0.00027397,2]
[325347818,1714746641578,-500.0,0.00027397,2]
[325347820,1714746641587,-500.0,0.00027397,2]
[325347822,1714746641597,-500.0,0.00027397,2]
[325347824,1714746641606,-767.52,0.00027397,2]
[325347826,1714746641615,-500.0,0.00027397,2]
[325347828,1714746641625,-500.0,0.00027397,2]
[325347830,1714746641634,-500.0,0.00027397,2]
[325347832,1714746641643,-535.06,0.00027397,2]
[325347834,1714746641652,-500.0,0.00027397,2]
[325347836,1714746641662,-500.0,0.00027397,2]
[325347838,1714746641671,-500.0,0.00027397,2]
[325347840,1714746641680,-500.0,0.00027397,2]
[325347842,1714746641689,-504.86,0.00027397,2]
[325347844,1714746641698,-500.0,0.00027397,2]
[325347846,1714746641708,-500.0,0.00027397,2]
[325347848,1714746641718,-591.05,0.00027397,2]
[325347850,1714746641727,-500.0,0.00027397,2]
[325347852,1714746641737,-500.0,0.00027397,2]
[325347854,1714746641746,-500.0,0.00027397,2]
[325347856,1714746641756,-633.79035964,0.00027397,2]
[325347858,1714746641766,-500.0,0.00027397,2]
[325347860,1714746641775,-804.7,0.00027397,2]
[325347862,1714746641786,-536.97,0.00027397,2]
[325347864,1714746641795,-500.0,0.00027397,2]
[325347866,1714746641805,-1757.37,0.00027397,2]
[325347868,1714746641814,-500.0,0.00027397,2]
[325347870,1714746641824,-500.0,0.00027397,2]
[325347872,1714746641834,-500.0,0.00027397,2]
[325347874,1714746641843,-500.0,0.00027397,2]
[325347876,1714746641853,-500.0,0.00027397,2]
[325347878,1714746641863,-500.0,0.00027397,2]
[325347880,1714746641875,-500.0,0.00027397,2]
[325347882,1714746641885,-500.0,0.00027397,2]
[325347884,1714746641895,-500.0,0.00027397,2]
[325347886,1714746641905,-500.0,0.00027397,2]
[325347888,1714746641915,-685.03,0.00027397,2]
[325347890,1714746641924,-500.0,0.00027397,2]
[325347892,1714746641934,-529.56,0.00027397,2]
[325347894,1714746641944,-500.0,0.00027397,2]
[325347896,1714746641953,-500.0,0.00027397,2]
[325347898,1714746641963,-1338.07,0.00027397,2]
[325347900,1714746641973,-6489.72,0.00027397,2]
[325347902,1714746641983,-500.0,0.00027397,2]
[325347904,1714746641992,-500.0,0.00027397,2]
[325347906,1714746642002,-500.0,0.00027397,2]
[325347908,1714746642011,-1789.08,0.00027397,2]
[325347910,1714746642020,-500.0,0.00027397,2]
[325347912,1714746642030,-500.0,0.00027397,2]
[325347914,1714746642039,-500.0,0.00027397,2]
[325347916,1714746642049,-500.0,0.00027397,2]
[325347918,1714746642058,-1796.56,0.00027397,2]
[325347920,1714746642068,-1712.16,0.00027397,2]
[325347922,1714746642077,-500.0,0.00027397,2]
[325347924,1714746642087,-500.0,0.00027397,2]
[325347926,1714746642096,-3412.01,0.00027397,2]
[325347928,1714746642105,-500.0,0.00027397,2]
[325347930,1714746642115,-8003.99,0.00027397,2]
[325347932,1714746642124,-1643.89,0.00027397,2]
[325347934,1714746642134,-500.0,0.00027397,2]
[325347936,1714746642143,-11017.69,0.00027397,2]
[325347938,1714746642153,-500.0,0.00027397,2]
[325347940,1714746642162,-500.0,0.00027397,2]
[325347942,1714746642172,-500.0,0.00027397,2]
[325347944,1714746642181,-500.0,0.00027397,2]
[325347946,1714746642190,-500.0,0.00027397,2]
[325347948,1714746642199,-500.0,0.00027397,2]
[325347950,1714746642208,-821.84,0.00027397,2]
[325347952,1714746642218,-500.0,0.00027397,2]
[325347954,1714746642232,-505.68137421,0.00027397,2]
[325347956,1714746642242,-500.0,0.00027397,2]
[325347958,1714746642252,-500.0,0.00027397,2]
[325347960,1714746642261,-1104.96,0.00027397,2]
[325347962,1714746642272,-225.54990279,0.00027397,2]
[325347964,1714746642282,-1081.86,0.00027397,2]
[325347965,1714746642291,-500.0,0.00027397,2]
[325347967,1714746642300,-540.68,0.00027397,2]
[325347969,1714746642310,-500.0,0.00027397,2]
[325347971,1714746642320,-500.0,0.00027397,2]
[325347973,1714746642330,-500.0,0.00027397,2]
[325347975,1714746642339,-500.0,0.00027397,2]
[325347977,1714746642349,-12488.8,0.00027397,2]
[325347979,1714746642359,-932.89,0.00027397,2]
[325347981,1714746642368,-656.2,0.00027397,2]
[325347983,1714746642377,-516.23418292,0.00027397,2]
[325347985,1714746642387,-500.0,0.00027397,2]
[325347987,1714746642396,-493.99867445,0.00027397,2]
[325347989,1714746642406,-500.0,0.00027397,2]
[325347991,1714746642415,-500.0,0.00027397,2]
[325347993,1714746642425,-500.0,0.00027397,2]
[325347995,1714746642434,-500.0,0.00027397,2]
[325347997,1714746642444,-506.78989974,0.00027397,2]
[325347999,1714746642454,-1159.79,0.00027397,2]
[325348001,1714746642464,-500.0,0.00027397,2]
[325348003,1714746642474,-500.0,0.00027397,2]
[325348005,1714746642484,-1691.08,0.00027397,2]
[325348007,1714746642494,-523.47,0.00027397,2]
[325348008,1714746642503,-500.0,0.00027397,2]
[325348010,1714746642513,-500.0,0.00027397,2]
[325348012,1714746642522,-2199.0,0.00027397,2]
[325348013,1714746642532,-5883.66,0.00027397,2]
[325348015,1714746642542,-500.0,0.00027397,2]
[325348017,1714746642552,-500.0,0.00027397,2]
[325348019,1714746642562,-7123.91,0.00027397,2]
[325348021,1714746642571,-482.76660965,0.00027397,2]
[325348023,1714746642580,-500.0,0.00027397,2]
[325348025,1714746642589,-500.0,0.00027397,2]
[325348027,1714746642598,-613.17657751,0.00027397,2]
[325348029,1714746642608,-500.0,0.00027397,2]
[325348031,1714746642618,-407.66180723,0.00027397,2]
[325348033,1714746642628,-671.67,0.00027397,2]
[325348035,1714746642637,-500.0,0.00027397,2]
[325348037,1714746642646,-500.0,0.00027397,2]
[325348039,1714746642656,-638.9,0.00027397,2]
[325348041,1714746642666,-500.0,0.00027397,2]
[325348042,1714746642675,-500.0,0.00027397,2]
[325348044,1714746642685,-48575.89,0.00027397,2]
[325348046,1714746642695,-300.42292954,0.00027397,2]
[325348048,1714746642704,-1840.61,0.00027397,2]
[325348050,1714746642714,-8336.7,0.00027397,2]
[325348052,1714746642723,-1214.07,0.00027397,2]
[325348054,1714746642732,-500.0,0.00027397,2]
[325348056,1714746642742,-275.55536833,0.00027397,2]
[325348058,1714746642752,-514.74,0.00027397,2]
[325348060,1714746642762,-500.0,0.00027397,2]
[325348062,1714746642772,-500.0,0.00027397,2]
[325348064,1714746642781,-502.73119952,0.00027397,2]
[325348066,1714746642790,-500.0,0.00027397,2]
[325348068,1714746642800,-500.0,0.00027397,2]
[325348070,1714746642809,-667.85,0.00027397,2]
[325348072,1714746642819,-500.0,0.00027397,2]
[325348073,1714746642828,-2392.37,0.00027397,2]
[325348075,1714746642838,-2917.97,0.00027397,2]
[325348078,1714746642848,-500.0,0.00027397,2]
[325348079,1714746642858,-863.42,0.00027397,2]
[325348081,1714746642868,-500.0,0.00027397,2]
[325348084,1714746642880,-500.0,0.00027397,2]
[325348085,1714746642890,-752.33,0.00027397,2]
[325348087,1714746642899,-500.0,0.00027397,2]
[325348089,1714746642909,-1215.8,0.00027397,2]
[325348091,1714746642919,-706.94,0.00027397,2]
[325348093,1714746642928,-500.0,0.00027397,2]
[325348095,1714746642938,-500.0,0.00027397,2]
[325348097,1714746642948,-500.0,0.00027397,2]
[325348099,1714746642957,-1340.1,0.00027397,2]
[325348101,1714746642967,-1609.91,0.00027397,2]
[325348103,1714746642976,-500.0,0.00027397,2]
[325348105,1714746642986,-2655.79,0.00027397,2]
[325348107,1714746642995,-509.39,0.00027397,2]
[325348109,1714746643005,-243.14770334,0.00027397,2]
[325348111,1714746643015,-500.0,0.00027397,2]
[325348113,1714746643024,-500.0,0.00027397,2]
[325348115,1714746643033,-2308.48,0.00027397,2]
[325348117,1714746643043,-7075.94,0.00027397,2]
[325348119,1714746643053,-500.0,0.00027397,2]
[325348121,1714746643062,-500.0,0.00027397,2]
[325348123,1714746643072,-500.0,0.00027397,2]
[325348125,1714746643081,-500.0,0.00027397,2]
[325348127,1714746643091,-500.0,0.00027397,2]
[325348129,1714746643100,-1381.8,0.00027397,2]
[325348131,1714746643109,-500.0,0.00027397,2]
[325348133,1714746643119,-500.0,0.00027397,2]
[325348135,1714746643128,-500.0,0.00027397,2]
[325348137,1714746643138,-500.0,0.00027397,2]
[325348139,1714746643147,-500.0,0.00027397,2]
[325348141,1714746643157,-500.0,0.00027397,2]
[325348143,1714746643166,-500.0,0.00027397,2]
[325348145,1714746643176,-587.38,0.00027397,2]
[325348147,1714746643185,-500.0,0.00027397,2]
[325348149,1714746643194,-546.08,0.00027397,2]
[325348151,1714746643203,-500.0,0.00027397,2]
[325348153,1714746643212,-500.0,0.00027397,2]
[325348172,1714746643309,-536.55543762,0.00027397,2]
[325348174,1714746643319,-500.0,0.00027397,2]
[325348176,1714746643331,-519.41797069,0.00027397,2]
[325348178,1714746643341,-500.0,0.00027397,2]
[325348180,1714746643351,-908.33,0.00027397,2]
[325348182,1714746643360,-500.0,0.00027397,2]
[325348184,1714746643369,-500.0,0.00027397,2]
[325348186,1714746643378,-500.0,0.00027397,2]
[325348188,1714746643387,-500.0,0.00027397,2]
[325348190,1714746643397,-500.0,0.00027397,2]
[325348192,1714746643406,-500.0,0.00027397,2]
[325348194,1714746643416,-500.0,0.00027397,2]
[325348196,1714746643425,-500.0,0.00027397,2]
[325348198,1714746643435,-500.0,0.00027397,2]
[325348200,1714746643444,-500.0,0.00027397,2]
[325348203,1714746643455,-9322.34,0.00027397,2]
[325348206,1714746643466,-500.0,0.00027397,2]
[325348209,1714746643476,-500.0,0.00027397,2]
[325348212,1714746643486,-500.0,0.00027397,2]
[325348216,1714746643495,-500.0,0.00027397,2]
[325348219,1714746643505,-500.0,0.00027397,2]
[325348222,1714746643514,-1576.42,0.00027397,2]
[325348225,1714746643523,-500.0,0.00027397,2]
[325348228,1714746643533,-500.0,0.00027397,30]
[325348231,1714746643542,-500.0,0.00027397,2]
[325348234,1714746643551,-500.0,0.00027397,2]
[325348237,1714746643560,-1772.75,0.00027397,2]
[325348239,1714746643570,-320.0,0.00027481,2]
[325348242,1714746643580,-500.0,0.000275,2]
[325348244,1714746643589,-153.0,0.00027562,2]
[325348247,1714746643599,-153.0,0.00027562,2]
[325348250,1714746643608,-306.0,0.00027562,2]
[325348253,1714746643618,-306.0,0.00027562,2]
[325348256,1714746643627,-883.0,0.000276,2]
[325348258,1714746643635,-469.0,0.00027616,2]
[325348261,1714746643645,-847.31053371,0.00027669,30]
[325348264,1714746643654,-44150.67053125,0.00027669,2]
[325348266,1714746643665,-155.41220515,0.0002767,2]
[325348268,1714746643674,-500.0,0.00027671,2]
[325348270,1714746643684,-500.0,0.00027671,2]
[325348272,1714746643693,-500.0,0.00027671,2]
[325348274,1714746643702,-500.0,0.00027671,2]
[325348276,1714746643712,-721.72,0.00027671,2]
[325348278,1714746643722,-500.0,0.00027671,2]
[325348280,1714746643731,-721.44,0.00027671,2]
[325348282,1714746643740,-500.0,0.00027671,2]
[325348284,1714746643750,-500.0,0.00027671,2]
[325348286,1714746643760,-500.0,0.00027671,2]
[325348287,1714746643769,-500.0,0.00027671,2]
[325348289,1714746643779,-500.0,0.00027671,2]
[325348291,1714746643788,-500.0,0.00027671,2]
[325348293,1714746643798,-500.0,0.00027671,2]
[325348295,1714746643807,-505.4215992,0.00027671,2]
[325348297,1714746643817,-500.0,0.00027671,2]
[325348299,1714746643827,-500.0,0.00027671,2]
[325348301,1714746643837,-500.0,0.00027671,2]
[325348303,1714746643846,-500.0,0.00027671,2]
[325348305,1714746643856,-1000.0,0.00027671,2]
[325348307,1714746643867,-500.0,0.00027671,2]
[325348309,1714746643878,-500.0,0.00027671,2]
[325348311,1714746643887,-500.0,0.00027671,2]
[325348313,1714746643896,-500.0,0.00027671,2]
[325348315,1714746643906,-500.0,0.00027671,2]
[325348317,1714746643916,-500.0,0.00027671,2]
[325348319,1714746643926,-501.1,0.00027671,2]
[325348321,1714746643935,-500.0,0.00027671,2]
[325348322,1714746643944,-500.0,0.00027671,2]
[325348324,1714746643953,-500.0,0.00027671,2]
[325348326,1714746643963,-500.0,0.00027671,2]
[325348328,1714746643972,-504.4,0.00027671,2]
[325348330,1714746643981,-500.0,0.00027671,2]
[325348332,1714746643991,-500.0,0.00027671,2]
[325348334,1714746644000,-500.0,0.00027671,2]
[325348336,1714746644009,-500.0,0.00027671,2]
[325348338,1714746644019,-507.19453145,0.00027671,2]
[325348340,1714746644028,-500.0,0.00027671,2]
[325348342,1714746644038,-500.0,0.00027671,2]
[325348344,1714746644047,-500.0,0.00027671,2]
[325348347,1714746644056,-500.0,0.00027671,2]
[325348350,1714746644066,-500.0,0.00027671,2]
[325348353,1714746644076,-500.0,0.00027671,2]
[325348355,1714746644092,-500.0,0.00027671,2]
[325348358,1714746644109,-500.0,0.00027671,2]
[325348360,1714746644122,-500.0,0.00027671,2]
[325348363,1714746644138,-500.0,0.00027671,2]
[325348365,1714746644153,-500.0,0.00027671,2]
[325348368,1714746644168,-500.0,0.00027671,2]
[325348370,1714746644186,-500.0,0.00027671,2]
[325348373,1714746644201,-953.78,0.00027671,2]
[325348375,1714746644216,-500.0,0.00027671,2]
[325348378,1714746644234,-500.0,0.00027671,2]
[325348380,1714746644248,-500.0,0.00027671,2]
[325348382,1714746644259,-500.0,0.00027671,2]
[325348385,1714746644271,-500.0,0.00027671,2]
[325348387,1714746644285,-500.0,0.00027671,2]
[325348389,1714746644300,-500.0,0.00027671,2]
[325348392,1714746644319,-500.0,0.00027671,2]
[325348395,1714746644334,-500.0,0.00027671,2]
[325348397,1714746644346,-500.0,0.00027671,2]
[325348399,1714746644358,-500.0,0.00027671,2]
[325348402,1714746644372,-500.0,0.00027671,2]
[325348404,1714746644386,-554.82,0.00027671,2]
[325348406,1714746644399,-500.0,0.00027671,2]
[325348408,1714746644421,-507.06600311,0.00027671,2]
[325348410,1714746644434,-500.0,0.00027671,2]
[325348413,1714746644447,-500.0,0.00027671,2]
[325348415,1714746644461,-904.18,0.00027671,2]
[325348417,1714746644475,-500.0,0.00027671,2]
[325348420,1714746644489,-516.8,0.00027671,2]
[325348422,1714746644502,-500.0,0.00027671,2]
[325348424,1714746644515,-500.0,0.00027671,2]
[325348427,1714746644528,-502.8324272,0.00027671,2]
[325348429,1714746644540,-500.0,0.00027671,2]
[325348431,1714746644552,-500.0,0.00027671,2]
[325348433,1714746644565,-500.0,0.00027671,2]
[325348436,1714746644580,-569.42708086,0.00027671,2]
[325348438,1714746644593,-500.0,0.00027671,2]
[325348441,1714746644606,-1154.28,0.00027671,2]
[325348443,1714746644618,-500.0,0.00027671,2]
[325348445,1714746644631,-500.0,0.00027671,2]
[325348448,1714746644643,-500.0,0.00027671,2]
[325348450,1714746644656,-636.82,0.00027671,2]
[325348452,1714746644669,-500.0,0.00027671,2]
[325348454,1714746644681,-595.88,0.00027671,2]
[325348457,1714746644694,-500.0,0.00027671,2]
[325348459,1714746644706,-1819.45,0.00027671,2]
[325348461,1714746644719,-500.0,0.00027671,2]
[325348463,1714746644732,-981.86,0.00027671,2]
[325348466,1714746644745,-500.0,0.00027671,2]
[325348468,1714746644758,-500.0,0.00027671,2]
[325348470,1714746644770,-500.0,0.00027671,2]
[325348472,1714746644782,-500.0,0.00027671,2]
[325348475,1714746644795,-500.0,0.00027671,2]
[325348477,1714746644808,-500.0,0.00027671,2]
[325348479,1714746644821,-500.0,0.00027671,2]
[325348482,1714746644835,-500.0,0.00027671,2]
[325348484,1714746644847,-1121.38,0.00027671,2]
[325348486,1714746644860,-500.0,0.00027671,2]
[325348489,1714746644875,-500.0,0.00027671,2]
[325348491,1714746644887,-584.65,0.00027671,2]
[325348493,1714746644900,-500.0,0.00027671,2]
[325348495,1714746644914,-725.14,0.00027671,2]
[325348498,1714746644928,-1162.99,0.00027671,2]
[325348500,1714746644941,-500.0,0.00027671,2]
[325348502,1714746644954,-720.55,0.00027671,2]
[325348504,1714746644967,-502.45887305,0.00027671,2]
[325348507,1714746644979,-500.0,0.00027671,2]
[325348509,1714746644993,-581.03,0.00027671,2]
[325348511,1714746645005,-500.0,0.00027671,2]
[325348514,1714746645018,-304.7513673,0.00027671,2]
[325348516,1714746645032,-500.0,0.00027671,2]
[325348519,1714746645045,-500.0,0.00027671,2]
[325348521,1714746645058,-500.0,0.00027671,2]
[325348523,1714746645071,-550.97,0.00027671,2]
[325348525,1714746645084,-326.37229878,0.00027671,2]
[325348528,1714746645097,-500.0,0.00027671,2]
[325348530,1714746645111,-297.43806276,0.00027671,2]
[325348532,1714746645121,-500.0,0.00027671,2]